lending/lending_fUSD_20250121
["ID","MTS","AMOUNT","RATE_DAILY","PERIOD"]
[349821733,1737451854943,-500.0,0.00020272,2]
[349821734,1737451854952,-500.0,0.00020272,2]
[349821735,1737451854962,-500.0,0.00020272,2]
[349821736,1737451854971,-500.0,0.00020272,2]
[349821737,1737451854981,-500.0,0.00020272,2]
[349821738,1737451854991,-500.0,0.00020272,2]
[349821739,1737451855003,-500.0,0.00020272,2]
[349821740,1737451855012,-550.69,0.00020272,2]
[349821741,1737451855022,-525.13,0.00020272,2]
[349821742,1737451855031,-521.1,0.00020272,2]
[349821743,1737451855041,-797.02,0.00020272,2]
[349821744,1737451855050,-160.523018,0.00020272,2]
[349821745,1737451855060,-556.55,0.00020272,2]
[349821746,1737451855070,-1866.84,0.00020272,2]
[349821747,1737451855080,-2519.65,0.00020272,2]
[349821748,1737451855089,-548.24,0.00020272,2]
[349821749,1737451855098,-777.32,0.00020272,2]
[349821750,1737451855107,-500.0,0.00020272,2]
[349821751,1737451855118,-1125.78,0.00020272,2]
[349821752,1737451855127,-155.553152,0.00020272,2]
[349821753,1737451855137,-500.0,0.00020272,2]
[349821754,1737451855146,-500.0,0.00020272,2]
[349821755,1737451855155,-788.4,0.00020272,2]
[349821756,1737451855165,-500.0,0.00020272,2]
[349821757,1737451855174,-1354.69,0.00020272,2]
[349821758,1737451855183,-500.0,0.00020272,2]
[349821759,1737451855193,-500.0,0.00020272,2]
[349821760,1737451855203,-500.0,0.00020272,2]
[349821761,1737451855213,-500.0,0.00020272,2]
[349821762,1737451855222,-500.0,0.00020272,2]
[349821763,1737451855232,-500.0,0.00020272,2]
[349821764,1737451855241,-500.0,0.00020272,2]
[349821765,1737451855250,-844.31,0.00020272,2]
[349821766,1737451855260,-208.822323,0.00020272,2]
[349821767,1737451855269,-1391.48,0.00020272,2]
[349821768,1737451855278,-1002.55,0.00020272,2]
[349821769,1737451855287,-500.0,0.00020272,2]
[349821770,1737451855297,-500.0,0.00020272,2]
[349821771,1737451855306,-640.71,0.00020272,2]
[349821772,1737451855315,-500.0,0.00020272,2]
[349821773,1737451855324,-500.0,0.00020272,2]
[349821774,1737451855333,-500.0,0.00020272,2]
[349821775,1737451855343,-731.04,0.00020272,2]
[349821776,1737451855352,-500.0,0.00020272,2]
[349821777,1737451855361,-500.0,0.00020272,2]
[349821778,1737451855371,-500.0,0.00020272,2]
[349821779,1737451855383,-714.65,0.00020272,2]
[349821780,1737451855392,-500.0,0.00020272,2]
[349821781,1737451855402,-505.72,0.00020272,2]
[349821782,1737451855411,-500.0,0.00020272,2]
[349821783,1737451855421,-1332.26,0.00020272,2]
[349821784,1737451855430,-500.0,0.00020272,2]
[349821785,1737451855439,-500.0,0.00020272,2]
[349821786,1737451855451,-500.0,0.00020272,2]
[349821787,1737451855460,-1133.86,0.00020272,2]
[349821788,1737451855469,-500.0,0.00020272,2]
[349821789,1737451855478,-500.0,0.00020272,2]
[349821790,1737451855487,-623.68,0.00020272,2]
[349821791,1737451855497,-1398.4,0.00020272,2]
[349821792,1737451855507,-500.0,0.00020272,2]
[349821793,1737451855516,-500.0,0.00020272,2]
[349821794,1737451855525,-1012.63,0.00020272,2]
[349821795,1737451855535,-500.0,0.00020272,2]
[349821796,1737451855544,-500.0,0.00020272,2]
[349821797,1737451855553,-1816.63,0.00020272,2]
[349821798,1737451855562,-500.0,0.00020272,2]
[349821799,1737451855571,-2242.61,0.00020272,2]
[349821800,1737451855581,-537.32,0.00020272,2]
[349821801,1737451855590,-500.0,0.00020272,2]
[349821802,1737451855599,-500.0,0.00020272,2]
[349821803,1737451855609,-500.0,0.00020272,2]
[349821804,1737451855618,-598.63,0.00020272,2]
[349821805,1737451855627,-819.36,0.00020272,2]
[349821806,1737451855637,-500.0,0.00020272,2]
[349821807,1737451855646,-520.49380038,0.00020272,2]
[349821808,1737451855655,-878.52,0.00020272,2]
[349821809,1737451855665,-500.0,0.00020272,2]
[349821810,1737451855674,-500.0,0.00020272,2]
[349821811,1737451855684,-500.0,0.00020272,2]
[349821812,1737451855693,-865.06,0.00020272,2]
[349821813,1737451855702,-2333.67,0.00020272,2]
[349821814,1737451855711,-1054.66,0.00020272,2]
[349821815,1737451855721,-500.0,0.00020272,2]
[349821816,1737451855730,-639.03,0.00020272,2]
[349821817,1737451855740,-1659.51,0.00020272,2]
[349821818,1737451855749,-500.0,0.00020272,2]
[349821819,1737451855761,-788.63,0.00020272,2]
[349821820,1737451855770,-500.0,0.00020272,2]
[349821821,1737451855779,-2681.81,0.00020272,2]
[349821822,1737451855788,-500.0,0.00020272,2]
[349821823,1737451855798,-792.79,0.00020272,2]
[349821824,1737451855808,-500.0,0.00020272,2]
[349821825,1737451855817,-607.89,0.00020272,2]
[349821826,1737451855826,-809.0,0.00020272,2]
[349821827,1737451855835,-630.14,0.00020272,2]
[349821828,1737451855844,-500.0,0.00020272,2]
[349821829,1737451855854,-1650.93,0.00020272,2]
[349821830,1737451855864,-1908.06,0.00020272,2]
[349821831,1737451855873,-500.0,0.00020272,2]
[349821832,1737451855883,-500.0,0.00020272,2]
[349821833,1737451855892,-1008.63,0.00020272,2]
[349821834,1737451855902,-500.0,0.00020272,2]
[349821835,1737451855911,-609.84,0.00020272,2]
[349821836,1737451855919,-2139.5,0.00020272,2]
[349821837,1737451855929,-1503.49,0.00020272,2]
[349821838,1737451855938,-1375.23,0.00020272,2]
[349821839,1737451855947,-500.0,0.00020272,2]
[349821840,1737451855956,-500.0,0.00020272,2]
[349821841,1737451855966,-900.29,0.00020272,2]
[349821842,1737451855975,-500.0,0.00020273,2]
[349821843,1737451855984,-500.0,0.00020273,2]
[349821844,1737451855993,-500.0,0.00020273,2]
[349821845,1737451856003,-500.0,0.00020273,2]
[349821846,1737451856013,-500.0,0.00020273,2]
[349821847,1737451856022,-500.0,0.00020273,2]
[349821848,1737451856031,-500.0,0.00020273,2]
[349821849,1737451856041,-150.64022147,0.00020273,2]
[349821850,1737451856051,-512.40440752,0.00020273,2]
[349821851,1737451856061,-500.0,0.00020273,2]
[349821852,1737451856070,-500.0,0.00020273,2]
[349821853,1737451856079,-1366.89,0.00020273,2]
[349821854,1737451856088,-500.0,0.00020273,2]
[349821855,1737451856097,-500.0,0.00020273,2]
[349821856,1737451856106,-215.11823575,0.00020273,2]
[349821857,1737451856115,-643.51,0.00020273,2]
[349821858,1737451856125,-500.0,0.00020273,2]
[349821859,1737451856135,-500.0,0.00020273,2]
[349821860,1737451856143,-500.0,0.00020273,2]
[349821861,1737451856153,-500.0,0.00020273,2]
[349821862,1737451856162,-500.0,0.00020273,2]
[349821863,1737451856171,-500.0,0.00020273,2]
[349821864,1737451856180,-521.3110304,0.00020273,2]
[349821865,1737451856189,-500.0,0.00020273,2]
[349821866,1737451856198,-500.0,0.00020273,2]
[349821867,1737451856207,-687.44,0.00020273,2]
[349821868,1737451856216,-500.0,0.00020273,2]
[349821869,1737451856225,-500.0,0.00020273,2]
[349821870,1737451856234,-505.54654149,0.00020273,2]
[349821871,1737451856243,-500.0,0.00020273,2]
[349821872,1737451856253,-500.0,0.00020273,2]
[349821873,1737451856262,-500.0,0.00020273,2]
[349821874,1737451856271,-500.0,0.00020273,2]
[349821875,1737451856280,-565.39,0.00020273,2]
[349821876,1737451856289,-522.77373854,0.00020273,2]
[349821877,1737451856298,-500.0,0.00020273,2]
[349821878,1737451856307,-500.0,0.00020273,2]
[349821879,1737451856316,-500.0,0.00020273,2]
[349821880,1737451856325,-500.0,0.00020273,2]
[349821881,1737451856335,-500.0,0.00020273,2]
[349821882,1737451856344,-984.73,0.00020273,2]
[349821883,1737451856353,-500.0,0.00020273,2]
[349821884,1737451856363,-703.52,0.00020273,2]
[349821885,1737451856374,-500.0,0.00020273,2]
[349821886,1737451856384,-355.80684008,0.00020273,2]
[349821887,1737451856392,-500.0,0.00020273,2]
[349821888,1737451856402,-500.0,0.00020273,2]
[349821889,1737451856411,-500.0,0.00020273,2]
[349821890,1737451856421,-500.0,0.00020273,2]
[349821891,1737451856430,-500.0,0.00020273,2]
[349821892,1737451856439,-500.0,0.00020273,2]
[349821893,1737451856451,-500.0,0.00020273,2]
[349821894,1737451856461,-500.0,0.00020273,2]
[349821895,1737451856470,-648.42,0.00020273,2]
[349821896,1737451856479,-500.0,0.00020273,2]
[349821897,1737451856488,-500.0,0.00020273,2]
[349821898,1737451856497,-1458.78,0.00020273,2]
[349821899,1737451856507,-500.0,0.00020273,2]
[349821900,1737451856516,-500.0,0.00020273,2]
[349821901,1737451856525,-359.71739739,0.00020273,2]
[349821902,1737451856535,-500.0,0.00020273,2]
[349821903,1737451856544,-500.0,0.00020273,2]
[349821904,1737451856553,-500.0,0.00020273,2]
[349821905,1737451856562,-500.0,0.00020273,2]
[349821906,1737451856572,-500.0,0.00020273,2]
[349821907,1737451856581,-500.0,0.00020273,2]
[349821908,1737451856590,-500.0,0.00020273,2]
[349821909,1737451856599,-500.0,0.00020273,2]
[349821910,1737451856608,-500.0,0.00020273,2]
[349821911,1737451856617,-500.0,0.00020273,2]
[349821912,1737451856626,-500.0,0.00020273,2]
[349821913,1737451856635,-500.0,0.00020273,2]
[349821914,1737451856644,-500.0,0.00020273,2]
[349821915,1737451856654,-500.0,0.00020273,2]
[349821916,1737451856663,-524.83618453,0.00020273,2]
[349821917,1737451856772,-500.0,0.00020273,2]
[349821918,1737451856782,-500.0,0.00020273,2]
[349821919,1737451856791,-500.0,0.00020273,2]
[349821920,1737451856800,-500.0,0.00020273,2]
[349821921,1737451856809,-500.0,0.00020273,2]
[349821922,1737451856819,-500.0,0.00020273,2]
[349821923,1737451856828,-500.0,0.00020273,2]
[349821924,1737451856837,-500.0,0.00020273,2]
[349821925,1737451856846,-500.0,0.00020273,2]
[349821926,1737451856855,-500.0,0.00020273,2]
[349821927,1737451856865,-500.0,0.00020273,2]
[349821928,1737451856874,-500.0,0.00020273,2]
[349821929,1737451856883,-500.0,0.00020273,2]
[349821930,1737451856893,-500.0,0.00020273,2]
[349821931,1737451856902,-500.0,0.00020273,2]
[349821932,1737451856911,-500.0,0.00020273,2]
[349821933,1737451856920,-500.0,0.00020273,2]
[349821934,1737451856930,-500.0,0.00020273,2]
[349821935,1737451856939,-500.0,0.00020273,2]
[349821936,1737451856948,-500.0,0.00020273,2]
[349821937,1737451856957,-500.0,0.00020273,2]
[349821938,1737451856967,-500.0,0.00020273,2]
[349821939,1737451856976,-533.17771255,0.00020273,2]
[349821940,1737451856986,-500.0,0.00020273,2]
[349821941,1737451856995,-568.81,0.00020273,2]
[349821942,1737451857006,-316.47734665,0.00020273,2]
[349821943,1737451857015,-500.0,0.00020273,2]
[349821944,1737451857025,-500.0,0.00020273,2]
[349821945,1737451857036,-500.0,0.00020273,2]
[349821946,1737451857045,-500.0,0.00020273,2]
[349821947,1737451857055,-1180.87,0.00020273,2]
[349821948,1737451857066,-500.0,0.00020273,2]
[349821949,1737451857076,-500.0,0.00020273,2]
[349821950,1737451857085,-1000.0,0.00020273,2]
[349821951,1737451857095,-1042.35,0.00020273,2]
[349821952,1737451857105,-500.0,0.00020273,2]
[349821953,1737451857114,-500.0,0.00020273,2]
[349821954,1737451857124,-1431.03,0.00020273,2]
[349821955,1737451857133,-500.0,0.00020273,2]
[349821956,1737451857142,-1442.47,0.00020273,2]
[349821957,1737451857151,-1618.9,0.00020273,2]
[349821958,1737451857161,-784.62,0.00020273,2]
[349821959,1737451857170,-1181.46,0.00020273,2]
[349821960,1737451857179,-700.2,0.00020273,2]
[349821961,1737451857189,-500.0,0.00020273,2]
[349821962,1737451857198,-500.0,0.00020273,2]
[349821963,1737451857208,-864.13,0.00020273,2]
[349821964,1737451857218,-1046.8,0.00020273,2]
[349821965,1737451857227,-500.0,0.00020273,2]
[349821966,1737451857237,-2225.67,0.00020273,2]
[349821967,1737451857247,-997.49,0.00020273,2]
[349821968,1737451857257,-500.0,0.00020273,2]
[349821969,1737451857267,-500.0,0.00020273,2]
[349821970,1737451857276,-643.01,0.00020273,2]
[349821971,1737451857286,-500.0,0.00020273,2]
[349821972,1737451857295,-1363.79,0.00020273,2]
[349821973,1737451857304,-500.0,0.00020273,2]
[349821974,1737451857313,-968.6,0.00020273,2]
[349821975,1737451857323,-731.54,0.00020273,2]
[349821976,1737451857332,-671.55,0.00020273,2]
[349821977,1737451857341,-500.0,0.00020273,2]
[349821978,1737451857351,-1512.89,0.00020273,2]
[349821979,1737451857360,-1824.0,0.00020273,2]
[349821980,1737451857370,-500.0,0.00020273,2]
[349821981,1737451857384,-500.0,0.00020273,2]
[349821982,1737451857393,-500.0,0.00020273,2]
[349821983,1737451857403,-720.36,0.00020273,2]
[349821984,1737451857413,-500.0,0.00020273,2]
[349821985,1737451857424,-300.0,0.00020273,2]
[349821986,1737451857434,-500.0,0.00020273,2]
[349821987,1737451857443,-1598.88,0.00020273,2]
[349821988,1737451857453,-1625.7,0.00020273,2]
[349821989,1737451857463,-500.0,0.00020273,2]
[349821990,1737451857471,-11076.26,0.00020273,2]
[349821991,1737451857481,-714.81,0.00020273,2]
[349821992,1737451857490,-2426.31,0.000203,2]
[349821993,1737451857499,-264093.65918513,0.00020347,2]
[349821994,1737451857510,-244.10228757,0.0002046,2]
[349821995,1737451857519,-405.71652632,0.0002051,2]
[349821996,1737451857528,-500.0,0.00020546,2]
[349821997,1737451857538,-500.0,0.00020546,2]
[349821998,1737451857547,-647.89,0.00020546,2]
[349821999,1737451857556,-893.13,0.00020546,2]
[349822000,1737451857565,-500.0,0.00020546,2]
[349822001,1737451857574,-500.0,0.00020546,2]
[349822002,1737451857583,-500.0,0.00020546,2]
[349822003,1737451857593,-500.0,0.00020546,2]
[349822004,1737451857602,-500.0,0.00020546,2]
[349822005,1737451857611,-500.0,0.00020546,2]
[349822006,1737451857620,-500.0,0.00020546,2]
[349822007,1737451857629,-500.0,0.00020546,2]
[349822008,1737451857639,-500.0,0.00020546,2]
[349822009,1737451857648,-500.0,0.00020546,2]
[349822010,1737451857657,-500.0,0.00020546,2]
[349822011,1737451857667,-500.0,0.00020546,2]
[349822012,1737451857676,-500.0,0.00020546,2]
[349822013,1737451857685,-500.0,0.00020546,2]
[349822014,1737451857694,-500.0,0.00020546,2]
[349822015,1737451857704,-500.0,0.00020546,2]
[349822016,1737451857713,-500.0,0.00020546,2]
[349822017,1737451857723,-500.0,0.00020546,2]
[349822018,1737451857732,-500.0,0.00020546,2]
[349822019,1737451857741,-500.0,0.00020546,2]
[349822020,1737451857751,-500.0,0.00020546,2]
[349822021,1737451857762,-500.0,0.00020546,2]
[349822022,1737451857771,-500.0,0.00020546,2]
[349822023,1737451857781,-500.0,0.00020546,2]
[349822024,1737451857791,-500.0,0.00020546,2]
[349822025,1737451857800,-500.0,0.00020546,2]
[349822026,1737451857810,-500.0,0.00020546,2]
[349822027,1737451857819,-500.0,0.00020546,2]
[349822028,1737451857828,-500.0,0.00020546,2]
[349822029,1737451857838,-550.69,0.00020546,2]
[349822030,1737451857847,-525.13,0.00020546,2]
[349822031,1737451857857,-521.1,0.00020546,2]
[349822032,1737451857866,-797.02,0.00020546,2]
[349822033,1737451857875,-556.55,0.00020546,2]
[349822034,1737451857884,-1866.84,0.00020546,2]
[349822035,1737451857894,-2519.65,0.00020546,2]
[349822036,1737451857903,-548.24,0.00020546,2]
[349822037,1737451857913,-777.32,0.00020546,2]
[349822038,1737451857922,-500.0,0.00020546,2]
[349822039,1737451857931,-1125.78,0.00020546,2]
[349822040,1737451857940,-155.553152,0.00020546,2]
[349822041,1737451857950,-500.0,0.00020546,2]
[349822042,1737451857959,-541.01728264,0.00020546,2]
[349822043,1737451857969,-788.4,0.00020546,2]
[349822044,1737451857978,-500.0,0.00020546,2]
[349822045,1737451857987,-1354.69,0.00020546,2]
[349822046,1737451857997,-500.0,0.00020546,2]
[349822047,1737451858010,-500.0,0.00020546,2]
[349822048,1737451858019,-500.0,0.00020546,2]
[349822049,1737451858030,-500.0,0.00020546,2]
[349822050,1737451858041,-500.0,0.00020546,2]
[349822051,1737451858051,-500.0,0.00020546,2]
[349822052,1737451858061,-500.0,0.00020546,2]
[349822053,1737451858071,-844.31,0.00020546,2]
[349822054,1737451858080,-208.822323,0.00020546,2]
[349822055,1737451858089,-1391.48,0.00020546,2]
[349822056,1737451858099,-1002.55,0.00020546,2]
[349822057,1737451858108,-500.0,0.00020546,2]
[349822058,1737451858118,-500.0,0.00020546,2]
[349822059,1737451858127,-640.71,0.00020546,2]
[349822060,1737451858137,-500.0,0.00020546,2]
[349822061,1737451858147,-500.0,0.00020546,2]
[349822062,1737451858156,-500.0,0.00020546,2]
[349822063,1737451858166,-731.04,0.00020546,2]
[349822064,1737451858175,-500.0,0.00020546,2]
[349822065,1737451858185,-500.0,0.00020546,2]
[349822066,1737451858194,-500.0,0.00020546,2]
[349822067,1737451858204,-714.65,0.00020546,2]
[349822068,1737451858214,-500.0,0.00020546,2]
[349822069,1737451858223,-505.72,0.00020546,2]
[349822070,1737451858233,-1332.26,0.00020546,2]
[349822071,1737451858243,-543.11142743,0.00020546,2]
[349822072,1737451858258,-433.0471027,0.00020546,2]
[349822073,1737451858267,-500.0,0.00020546,2]
[349822074,1737451858277,-1133.86,0.00020546,2]
[349822075,1737451858286,-341.49547369,0.00020546,2]
[349822076,1737451858296,-643.94256882,0.00020546,2]
[349822077,1737451858306,-623.68,0.00020546,2]
[349822078,1737451858315,-1398.4,0.00020546,2]
[349822079,1737451858325,-467.60505682,0.00020546,2]
[349822080,1737451858335,-500.0,0.00020546,2]
[349822081,1737451858344,-1012.63,0.00020546,2]
[349822082,1737451858353,-500.0,0.00020546,2]
[349822083,1737451858363,-1816.63,0.00020546,2]
[349822084,1737451858376,-500.0,0.00020546,2]
[349822085,1737451858385,-2242.61,0.00020546,2]
[349822086,1737451858395,-537.32,0.00020546,2]
[349822087,1737451858404,-500.0,0.00020546,2]
[349822088,1737451858414,-627.86150707,0.00020546,2]
[349822089,1737451858425,-500.0,0.00020546,2]
[349822090,1737451858435,-598.63,0.00020546,2]
[349822091,1737451858446,-819.36,0.00020546,2]
[349822092,1737451858456,-500.0,0.00020546,2]
[349822093,1737451858466,-878.52,0.00020546,2]
[349822094,1737451858475,-500.0,0.00020546,2]
[349822095,1737451858485,-500.0,0.00020546,2]
[349822096,1737451858494,-500.0,0.00020546,2]
[349822097,1737451858505,-865.06,0.00020546,2]
[349822098,1737451858515,-2333.67,0.00020546,2]
[349822099,1737451858524,-1054.66,0.00020546,2]
[349822100,1737451858535,-500.0,0.00020546,2]
[349822101,1737451858544,-639.03,0.00020546,2]
[349822102,1737451858554,-1659.51,0.00020546,2]
[349822103,1737451858564,-500.0,0.00020546,2]
[349822104,1737451858573,-788.63,0.00020546,2]
[349822105,1737451858583,-500.0,0.00020546,2]
[349822106,1737451858592,-2681.81,0.00020546,2]
[349822107,1737451858602,-500.0,0.00020546,2]
[349822108,1737451858611,-792.79,0.00020546,2]
[349822109,1737451858621,-500.0,0.00020546,2]
[349822110,1737451858631,-607.89,0.00020546,2]
[349822111,1737451858641,-809.0,0.00020546,2]
[349822112,1737451858650,-630.14,0.00020546,2]
[349822113,1737451858760,-500.0,0.00020546,2]
[349822114,1737451858771,-1650.93,0.00020546,2]
[349822115,1737451858780,-1908.06,0.00020546,2]
[349822116,1737451858790,-500.0,0.00020546,2]
[349822117,1737451858800,-348.83207896,0.00020546,2]
[349822118,1737451858810,-1008.63,0.00020546,2]
[349822119,1737451858819,-500.0,0.00020546,2]
[349822120,1737451858829,-609.84,0.00020546,2]
[349822121,1737451858839,-2139.5,0.00020546,2]
[349822122,1737451858848,-1503.49,0.00020546,2]
[349822123,1737451858858,-1375.23,0.00020546,2]
[349822124,1737451858867,-500.0,0.00020546,2]
[349822125,1737451858877,-500.0,0.00020546,2]
[349822126,1737451858886,-900.29,0.00020546,2]
[349822127,1737451858895,-1024.0,0.00020547,2]
[349822128,1737451858905,-500.0,0.00020547,2]
[349822129,1737451858914,-500.0,0.00020547,2]
[349822130,1737451858924,-500.0,0.00020547,2]
[349822131,1737451858933,-500.0,0.00020547,2]
[349822132,1737451858942,-500.0,0.00020547,2]
[349822133,1737451858952,-500.0,0.00020547,2]
[349822134,1737451858962,-500.0,0.00020547,2]
[349822135,1737451858971,-500.0,0.00020547,2]
[349822136,1737451858981,-1366.89,0.00020547,2]
[349822137,1737451858991,-500.0,0.00020547,2]
[349822138,1737451859000,-500.0,0.00020547,2]
[349822139,1737451859010,-643.51,0.00020547,2]
[349822140,1737451859020,-500.0,0.00020547,2]
[349822141,1737451859030,-500.0,0.00020547,2]
[349822142,1737451859040,-500.0,0.00020547,2]
[349822143,1737451859050,-500.0,0.00020547,2]
[349822144,1737451859059,-500.0,0.00020547,2]
[349822145,1737451859069,-500.0,0.00020547,2]
[349822146,1737451859078,-500.0,0.00020547,2]
[349822147,1737451859088,-500.0,0.00020547,2]
[349822148,1737451859097,-687.44,0.00020547,2]
[349822149,1737451859107,-500.0,0.00020547,2]
[349822150,1737451859116,-500.0,0.00020547,2]
[349822151,1737451859125,-500.0,0.00020547,2]
[349822152,1737451859135,-500.0,0.00020547,2]
[349822153,1737451859145,-500.0,0.00020547,2]
[349822154,1737451859155,-500.0,0.00020547,2]
[349822155,1737451859165,-565.39,0.00020547,2]
[349822156,1737451859175,-500.0,0.00020547,2]
[349822157,1737451859185,-500.0,0.00020547,2]
[349822158,1737451859194,-500.0,0.00020547,2]
[349822159,1737451859204,-500.0,0.00020547,2]
[349822160,1737451859213,-520.5642227,0.00020547,2]
[349822161,1737451859222,-984.73,0.00020547,2]
[349822162,1737451859232,-500.0,0.00020547,2]
[349822163,1737451859241,-703.52,0.00020547,2]
[349822164,1737451859250,-508.92213148,0.00020547,2]
[349822165,1737451859264,-500.0,0.00020547,2]
[349822166,1737451859274,-500.0,0.00020547,2]
[349822167,1737451859283,-500.0,0.00020547,2]
[349822168,1737451859292,-500.0,0.00020547,2]
[349822169,1737451859302,-500.0,0.00020547,2]
[349822170,1737451859312,-500.0,0.00020547,2]
[349822171,1737451859321,-500.0,0.00020547,2]
[349822172,1737451859331,-648.42,0.00020547,2]
[349822173,1737451859340,-500.0,0.00020547,2]
[349822174,1737451859350,-1458.78,0.00020547,2]
[349822175,1737451859359,-500.0,0.00020547,2]
[349822176,1737451859369,-500.0,0.00020547,2]
[349822177,1737451859380,-500.0,0.00020547,2]
[349822178,1737451859389,-500.0,0.00020547,2]
[349822179,1737451859398,-500.0,0.00020547,2]
[349822180,1737451859408,-500.0,0.00020547,2]
[349822181,1737451859418,-500.0,0.00020547,2]
[349822182,1737451859427,-500.0,0.00020547,2]
[349822183,1737451859437,-500.0,0.00020547,2]
[349822184,1737451859446,-500.0,0.00020547,2]
[349822185,1737451859456,-500.0,0.00020547,2]
[349822186,1737451859466,-500.0,0.00020547,2]
[349822187,1737451859475,-500.0,0.00020547,2]
[349822188,1737451859485,-500.0,0.00020547,2]
[349822189,1737451859494,-500.0,0.00020547,2]
[349822190,1737451859506,-500.0,0.00020547,2]
[349822191,1737451859516,-245.66,0.00020547,2]
[349822192,1737451859526,-524.2322221,0.00020547,2]
[349822193,1737451859536,-500.0,0.00020547,2]
[349822194,1737451859545,-500.0,0.00020547,2]
[349822195,1737451859555,-500.0,0.00020547,2]
[349822196,1737451859565,-500.0,0.00020547,2]
[349822197,1737451859575,-500.0,0.00020547,2]
[349822198,1737451859584,-500.0,0.00020547,2]
[349822199,1737451859594,-500.0,0.00020547,2]
[349822200,1737451859603,-500.0,0.00020547,2]
[349822201,1737451859612,-500.0,0.00020547,2]
[349822202,1737451859621,-500.0,0.00020547,2]
[349822203,1737451859630,-500.0,0.00020547,2]
[349822204,1737451859640,-500.0,0.00020547,2]
[349822205,1737451859649,-500.0,0.00020547,2]
[349822206,1737451859659,-500.0,0.00020547,2]
[349822207,1737451859669,-500.0,0.00020547,2]
[349822208,1737451859679,-453.07051858,0.00020547,2]
[349822209,1737451859689,-568.81,0.00020547,2]
[349822210,1737451859698,-500.0,0.00020547,2]
[349822211,1737451859708,-500.0,0.00020547,2]
[349822212,1737451859717,-500.0,0.00020547,2]
[349822213,1737451859726,-1180.87,0.00020547,2]
[349822214,1737451859737,-500.0,0.00020547,2]
[349822215,1737451859747,-500.0,0.00020547,2]
[349822216,1737451859757,-1000.0,0.00020547,2]
[349822217,1737451859766,-1042.35,0.00020547,2]
[349822218,1737451859775,-500.0,0.00020547,2]
[349822219,1737451859785,-500.0,0.00020547,2]
[349822220,1737451859795,-1431.03,0.00020547,2]
[349822221,1737451859805,-500.0,0.00020547,2]
[349822222,1737451859815,-1442.47,0.00020547,2]
[349822223,1737451859824,-1618.9,0.00020547,2]
[349822224,1737451859834,-784.62,0.00020547,2]
[349822225,1737451859843,-1181.46,0.00020547,2]
[349822226,1737451859853,-700.2,0.00020547,2]
[349822227,1737451859863,-500.0,0.00020547,2]
[349822228,1737451859873,-500.0,0.00020547,2]
[349822229,1737451859882,-864.13,0.00020547,2]
[349822230,1737451859891,-1046.8,0.00020547,2]
[349822231,1737451859901,-500.0,0.00020547,2]
[349822232,1737451859910,-2225.67,0.00020547,2]